fUST/lending_fUST_20250302
["ID","MTS","AMOUNT","RATE_DAILY","PERIOD"]
[355092040,1740888662346,-953.11,0.00028791,2]
[355092041,1740888662356,-1516.59,0.00028791,2]
[355092042,1740888662366,-507.51,0.00028791,2]
[355092043,1740888662376,-858.99,0.00028791,2]
[355092044,1740888662386,-3444.39,0.00028791,2]
[355092045,1740888662396,-2281.9,0.00028791,2]
[355092046,1740888662405,-1630.25,0.00028791,2]
[355092047,1740888662416,-911.84,0.00028791,2]
[355092048,1740888662426,-3860.43,0.00028791,2]
[355092049,1740888662436,-2721.24,0.00028791,2]
[355092050,1740888662446,-1106.3,0.00028791,2]
[355092051,1740888662456,-1181.87,0.00028791,2]
[355092052,1740888662466,-23508.95,0.00028792,2]
[355092053,1740888662475,-536.31,0.00028792,2]
[355092054,1740888662485,-690.48,0.00028792,2]
[355092055,1740888662495,-659.33,0.00028796,2]
[355092056,1740888662505,-407.93,0.00028796,2]
[355092057,1740888662515,-583.48,0.00028796,2]
[355092058,1740888662525,-500.0,0.00028796,2]
[355092059,1740888662535,-860.01,0.00028796,2]
[355092060,1740888662547,-547.74,0.00028796,2]
[355092061,1740888662556,-688.29,0.00028796,2]
[355092062,1740888662566,-598.59,0.00028796,2]
[355092063,1740888662576,-902.77,0.00028796,2]
[355092064,1740888662586,-540.37,0.00028796,2]
[355092065,1740888662597,-501.11,0.00028896,2]
[355092066,1740888662606,-527.77,0.00028896,2]
[355092067,1740888662616,-19629.85965445,0.00029,30]
[355092068,1740888662627,-1000.0,0.00029052,5]
[355092069,1740888662637,-1000.0,0.00029052,5]
[355092070,1740888662647,-1000.0,0.00029052,5]
[355092071,1740888662657,-1000.0,0.00029052,5]
[355092072,1740888662667,-1000.0,0.00029052,5]
[355092073,1740888662676,-1000.0,0.00029052,5]
[355092074,1740888662687,-502.30626016,0.00029052,5]
[355092075,1740888662696,-1000.0,0.00029052,5]
[355092076,1740888662706,-1025.66,0.00029065,2]
[355092077,1740888662715,-525.58,0.00029065,2]
[355092078,1740888662725,-1638.19,0.00029065,2]
[355092079,1740888662734,-221.05681321,0.00029065,2]
[355092080,1740888662744,-1982.43,0.00029065,2]
[355092081,1740888662754,-573.94,0.00029065,2]
[355092082,1740888662764,-560.23,0.00029065,2]
[355092083,1740888662774,-1689.14,0.00029065,2]
[355092084,1740888662784,-1352.81,0.00029065,2]
[355092085,1740888662798,-953.11,0.00029065,2]
[355092086,1740888662811,-1516.59,0.00029065,2]
[355092087,1740888662823,-507.51,0.00029065,2]
[355092088,1740888662835,-858.99,0.00029065,2]
[355092089,1740888662847,-3444.39,0.00029065,2]
[355092090,1740888662857,-2281.9,0.00029065,2]
[355092091,1740888662868,-1630.25,0.00029065,2]
[355092092,1740888662878,-911.84,0.00029065,2]
[355092093,1740888662889,-3860.43,0.00029065,2]
[355092094,1740888662900,-2721.24,0.00029065,2]
[355092095,1740888662910,-1106.3,0.00029065,2]
[355092096,1740888662920,-1181.87,0.00029065,2]
[355092097,1740888662931,-23508.95,0.00029066,2]
[355092098,1740888662942,-536.31,0.00029066,2]
[355092099,1740888662954,-690.48,0.00029066,2]
[355092100,1740888662964,-659.33,0.0002907,2]
[355092101,1740888662974,-583.48,0.0002907,2]
[355092102,1740888662984,-500.0,0.0002907,2]
[355092103,1740888662993,-860.01,0.0002907,2]
[355092104,1740888663003,-547.74,0.0002907,2]
[355092105,1740888663014,-688.29,0.0002907,2]
[355092106,1740888663025,-598.59,0.0002907,2]
[355092107,1740888663037,-902.77,0.0002907,2]
[355092108,1740888663049,-540.37,0.0002907,2]
[355092109,1740888663059,-2403.0,0.000291,14]
[355092110,1740888663069,-160.0,0.00029142,11]
[355092111,1740888663079,-501.11,0.0002917,2]
[355092112,1740888663089,-527.77,0.0002917,2]
[355092113,1740888663099,-155.378756,0.0002922,10]
[355092114,1740888663109,-150.0,0.00029246,2]
[355092115,1740888663119,-150.0,0.00029246,2]
[355092116,1740888663129,-1025.66,0.00029339,2]
[355092117,1740888663139,-23508.95,0.00029339,2]
[355092118,1740888663149,-536.31,0.00029339,2]
[355092119,1740888663159,-525.58,0.00029339,2]
[355092120,1740888663169,-1638.19,0.00029339,2]
[355092121,1740888663179,-690.48,0.00029339,2]
[355092122,1740888663189,-1982.43,0.00029339,2]
[355092123,1740888663200,-573.94,0.00029339,2]
[355092124,1740888663209,-560.23,0.00029339,2]
[355092125,1740888663219,-1689.14,0.00029339,2]
[355092126,1740888663229,-1352.81,0.00029339,2]
[355092127,1740888663239,-953.11,0.00029339,2]
[355092128,1740888663249,-1516.59,0.00029339,2]
[355092129,1740888663258,-507.51,0.00029339,2]
[355092130,1740888663268,-858.99,0.00029339,2]
[355092131,1740888663278,-3444.39,0.00029339,2]
[355092132,1740888663288,-2281.9,0.00029339,2]
[355092133,1740888663300,-1630.25,0.00029339,2]
[355092134,1740888663310,-911.84,0.00029339,2]
[355092135,1740888663319,-3860.43,0.00029339,2]
[355092136,1740888663329,-2721.24,0.00029339,2]
[355092137,1740888663339,-1106.3,0.00029339,2]
[355092138,1740888663349,-1181.87,0.00029339,2]
[355092139,1740888663359,-659.33,0.00029344,2]
[355092140,1740888663369,-583.48,0.00029344,2]
[355092141,1740888663379,-500.0,0.00029344,2]
[355092142,1740888663389,-860.01,0.00029344,2]
[355092143,1740888663399,-547.74,0.00029344,2]
[355092144,1740888663409,-688.29,0.00029344,2]
[355092145,1740888663419,-598.59,0.00029344,2]
[355092146,1740888663429,-902.77,0.00029344,2]
[355092147,1740888663439,-540.37,0.00029344,2]
[355092148,1740888663449,-1000.0,0.00029352,5]
[355092149,1740888663459,-1000.0,0.00029352,5]
[355092150,1740888663469,-501.11,0.00029444,2]
[355092151,1740888663478,-527.77,0.00029444,2]
[355092152,1740888663488,-1000.0,0.00029502,5]
[355092153,1740888663498,-214.91,0.000296,7]
[355092154,1740888663508,-160.0,0.0002961,12]
[355092155,1740888663519,-3000.0,0.00029612,7]
[355092156,1740888663528,-1025.74,0.00029613,2]
[355092157,1740888663538,-23509.08826706,0.00029613,2]
[355092158,1740888663548,-536.35,0.00029613,2]
[355092159,1740888663558,-525.8,0.00029613,2]
[355092160,1740888663568,-1638.27924837,0.00029613,2]
[355092161,1740888663577,-690.58,0.00029613,2]
[355092162,1740888663587,-1982.49,0.00029613,2]
[355092163,1740888663598,-574.06,0.00029613,2]
[355092164,1740888663608,-560.29,0.00029613,2]
[355092165,1740888663617,-1689.2,0.00029613,2]
[355092166,1740888663627,-1352.98650609,0.00029613,2]
[355092167,1740888663637,-953.26,0.00029613,2]
[355092168,1740888663647,-1516.65,0.00029613,2]
[355092169,1740888663656,-507.63,0.00029613,2]
[355092170,1740888663666,-859.01964125,0.00029613,2]
[355092171,1740888663676,-3444.51,0.00029613,2]
[355092172,1740888663685,-2281.96111604,0.00029613,2]
[355092173,1740888663695,-1630.32,0.00029613,2]
[355092174,1740888663706,-912.0,0.00029613,2]
[355092175,1740888663716,-3860.54,0.00029613,2]
[355092176,1740888663725,-2721.28,0.00029613,2]
[355092177,1740888663736,-1106.3321953,0.00029613,2]
[355092178,1740888663746,-1181.97,0.00029613,2]
[355092179,1740888663756,-659.54901271,0.00029618,2]
[355092180,1740888663767,-583.66495065,0.00029618,2]
[355092181,1740888663776,-442.55386302,0.00029618,2]
[355092182,1740888663786,-860.0139437,0.00029618,2]
[355092183,1740888663797,-547.85851491,0.00029618,2]
[355092184,1740888663806,-688.29,0.00029618,2]
[355092185,1740888663816,-598.77,0.00029618,2]
[355092186,1740888663826,-902.91279728,0.00029618,2]
[355092187,1740888663836,-540.55,0.00029618,2]
[355092188,1740888663846,-1000.0,0.00029652,5]
[355092189,1740888663856,-1016.31882693,0.00029652,5]
[355092190,1740888663867,-1000.0,0.00029652,5]
[355092191,1740888663877,-1000.0,0.00029652,5]
[355092192,1740888663887,-1000.0,0.00029652,5]
[355092193,1740888663898,-1000.0,0.00029652,5]
[355092194,1740888663908,-268.46671735,0.00029652,5]
[355092195,1740888663918,-1000.0,0.00029652,5]
[355092196,1740888663928,-1000.0,0.00029652,5]
[355092197,1740888663938,-1000.0,0.00029652,5]
[355092198,1740888663950,-1000.0,0.00029652,5]
[355092199,1740888663960,-1000.0,0.00029652,5]
[355092200,1740888663970,-1000.0,0.00029652,5]
[355092201,1740888663979,-501.31734123,0.00029718,2]
[355092202,1740888663990,-527.81,0.00029718,2]
[355092203,1740888664000,-551.96536553,0.00029742,2]
[355092204,1740888664010,-823.0,0.00029781,2]
[355092205,1740888664019,-1000.0,0.00029786,5]
[355092206,1740888664030,-1000.0,0.00029792,5]
[355092207,1740888664040,-203.81698758,0.00029805,5]
[355092208,1740888664051,-160.0,0.0003,3]
[355092209,1740888664061,-19629.85965445,0.0003,120]
[355092210,1740888664070,-206.0,0.0003,2]
[355092211,1740888664080,-2000.0,0.0003,4]
[355092212,1740888664091,-160.0,0.00030079,13]
[355092213,1740888664100,-500.0,0.00030137,5]
[355092214,1740888664110,-359.0,0.00030205,2]
[355092215,1740888664120,-3000.0,0.00030434,7]
[355092216,1740888664130,-1213.491109,0.00030485,30]
[355092217,1740888664140,-160.0,0.00030547,14]
[355092218,1740888664150,-2403.0,0.000306,15]
[355092219,1740888664159,-1000.0,0.00030685,5]
[355092220,1740888664170,-5889.33243419,0.00030994,2]
[355092221,1740888664180,-19629.85965445,0.00031,7]
[355092222,1740888664190,-160.0,0.00031,120]
[355092223,1740888664201,-160.0,0.00031,7]
[355092224,1740888664211,-160.0,0.00031015,15]
[355092225,1740888664222,-594.58072211,0.00031104,2]
[355092226,1740888664232,-1500.0,0.00031233,5]
[355092227,1740888664242,-203.81698758,0.00031281,6]
[355092228,1740888664252,-505.53265178,0.00031317,5]
[355092229,1740888664262,-1000.0,0.00031317,5]
[355092230,1740888664272,-1000.0,0.00031317,5]
[355092231,1740888664282,-838.29515779,0.00031317,5]
[355092232,1740888664293,-1000.0,0.00031317,5]
[355092233,1740888664303,-160.0,0.00031484,16]
[355092234,1740888664313,-2000.0,0.00031667,4]
[355092235,1740888664323,-2000.0,0.00031781,5]
[355092236,1740888664333,-160.0,0.00031952,17]
[355092237,1740888664343,-698237.82034751,0.00032,2]
[355092238,1740888664615,-167.0,0.00023,2]
[355092239,1740888664625,-500.0,0.00023316,2]
[355092240,1740888664635,-434.8574574,0.00023316,2]
[355092241,1740888664645,-500.0,0.0002359,2]
[355092242,1740888664655,-500.0,0.0002359,2]
[355092243,1740888664664,-500.0,0.00023864,2]
[355092244,1740888664674,-167.0,0.00024164,2]
[355092245,1740888664683,-169.0,0.00025373,2]
[355092246,1740888664693,-167.0,0.00030447,2]
[355092247,1740888664703,-51174.39594294,0.00032,2]
[355092248,1740888677407,109.90333948,0.0002,3]
[355092249,1740888677430,50.09666052,0.0002,3]
[355092250,1740888991402,160.0,0.0002,3]
[355092251,1740889135157,44.13387014,0.00022,14]
[355092252,1740889135182,72710.32612986,0.00022,14]
[355092253,1740889302290,160.0,0.0002,3]
[355092257,1740889537130,-500.0,0.00020095,2]
[355092258,1740889537151,-500.0,0.00020503,2]
[355092259,1740889537172,-500.0,0.00021582,2]
[355092260,1740889537193,-167.0,0.00022,2]
[355092261,1740889537214,-552.94608895,0.0002232,2]
[355092262,1740889537239,-641.38791105,0.00022335,2]
[355092263,1740889550694,4872.42210487,0.00022,14]
[355092265,1740889572289,1094.26585461,0.000199,2]
[355092266,1740889614283,160.0,0.0002,3]
[355092267,1740889627081,-1525.37698567,0.00022335,2]
[355092268,1740889634091,-3405.77551853,0.00022335,2]
[355092269,1740889644080,-166.74114371,0.00022335,2]
[355092270,1740889647108,-776.28859954,0.00022335,2]
[355092271,1740889651382,-334.39303697,0.00022335,2]
[355092272,1740889707790,2043.90550082,0.000176,2]
[355092273,1740889715983,29889.1524649,0.0001711,2]
[355092274,1740889716312,7043.92208214,0.00018,4]
[355092275,1740889717570,43241.88355645,0.00016,2]
[355092276,1740889717992,426.37460228,0.0001,7]
[355092280,1740889723091,569.39852284,0.000149,2]
[355092281,1740889723165,700.0,0.0001,2]
[355092283,1740889724863,7121.43389549,0.00021,30]
[355092284,1740889724976,2388.34926711,0.000135,2]
[355092285,1740889726881,4639.5261022,0.00016487,2]
[355092286,1740889745097,-300.0,0.00016486,2]
[355092287,1740889745119,-20370.86270036,0.00016487,2]
[355092288,1740889745140,-420.0,0.00018016,2]
[355092289,1740889745162,-587.0,0.00019688,2]
[355092290,1740889745182,-211.83366582,0.0002023,2]
[355092291,1740889745203,-6599.28065739,0.0002035,2]
[355092292,1740889745223,-445.9355416,0.000219,2]
[355092293,1740889745244,-4758.75425761,0.00022,2]
[355092294,1740889745264,-293.58714176,0.00022,2]
[355092295,1740889745293,-706.41285824,0.00022,2]
[355092296,1740889745314,-170.10657331,0.000221,2]
[355092297,1740889745337,-842.03176953,0.00022335,2]
[355092298,1740889745363,823.0,0.00021514,2]
[355092299,1740889752175,-500.0,0.00022718,2]
[355092300,1740889752195,-561.72781985,0.00023,60]
[355092301,1740889752216,-8738.27218015,0.00023,2]
[355092338,1740889832334,-573.26,0.00023291,3]
[355092340,1740889832346,-500.0,0.00023293,2]
[355092342,1740889832355,-550.0,0.00023293,2]
[355092344,1740889832365,-605.0,0.00023293,2]
[355092346,1740889832375,-665.5,0.00023293,2]
[355092348,1740889832386,-732.05,0.00023293,2]
[355092351,1740889832396,-805.255,0.00023293,2]
[355092353,1740889832407,-885.7805,0.00023293,2]
[355092355,1740889832416,-974.35855,0.00023293,2]
[355092357,1740889832426,-1071.794405,0.00023293,2]
[355092359,1740889832435,-1000.0,0.00023293,2]
[355092361,1740889832446,-475.0,0.00023294,3]
[355092363,1740889832456,-540.57,0.00023294,3]
[355092365,1740889832466,-159.82,0.00023294,2]
[355092367,1740889832476,-316.66,0.00023295,3]
[355092369,1740889832486,-158.33,0.00023295,3]
[355092371,1740889832496,-1597.09401403,0.00023296,2]
[355092373,1740889832506,-300.0,0.00023302,2]
[355092375,1740889832516,-1856.12,0.00023303,2]
[355092377,1740889832526,-500.0,0.00023303,2]
[355092379,1740889832535,-2509.74,0.00023303,2]
[355092381,1740889832545,-500.0,0.00023303,2]
[355092383,1740889832554,-1034.14,0.00023303,2]
[355092385,1740889832564,-511.99225277,0.00023303,2]
[355092387,1740889832574,-500.0,0.00023303,2]
[355092389,1740889832584,-897.45,0.00023303,2]
[355092391,1740889832594,-500.0,0.00023303,2]
[355092393,1740889832603,-500.0,0.00023303,2]
[355092396,1740889832613,-500.0,0.00023303,2]
[355092398,1740889832623,-596.32,0.00023303,2]
[355092400,1740889832633,-605.43,0.00023303,2]
[355092402,1740889832643,-500.0,0.00023303,2]
[355092404,1740889832654,-500.0,0.00023303,2]
[355092406,1740889832663,-1607.56,0.00023303,2]
[355092408,1740889832673,-500.0,0.00023303,2]
[355092410,1740889832682,-1734.63,0.00023303,2]
[355092412,1740889832693,-500.0,0.00023303,2]
[355092414,1740889832703,-500.0,0.00023303,2]
[355092416,1740889832713,-500.0,0.00023303,2]
[355092418,1740889832723,-500.0,0.00023303,2]
[355092420,1740889832734,-500.0,0.00023303,2]
[355092422,1740889832744,-500.0,0.00023303,2]
[355092424,1740889832754,-500.0,0.00023303,2]
[355092426,1740889832764,-500.0,0.00023303,2]
[355092428,1740889832774,-680.6,0.00023303,2]
[355092430,1740889832784,-500.0,0.00023303,2]
[355092432,1740889832793,-500.0,0.00023303,2]
[355092434,1740889832803,-500.0,0.00023303,2]
[355092436,1740889832813,-500.0,0.00023303,2]
[355092438,1740889832823,-500.0,0.00023303,2]
[355092440,1740889832832,-500.0,0.00023303,2]
[355092442,1740889832842,-500.0,0.00023303,2]
[355092444,1740889832851,-500.0,0.00023303,2]
[355092446,1740889832861,-500.0,0.00023303,2]
[355092448,1740889832870,-500.0,0.00023303,2]
[355092450,1740889832880,-500.0,0.00023303,2]
[355092451,1740889832889,-500.0,0.00023303,2]
[355092453,1740889832901,-500.0,0.00023303,2]
[355092455,1740889832911,-500.0,0.00023303,2]
[355092457,1740889832921,-418.56458285,0.00023303,2]
[355092459,1740889832931,-500.0,0.00023303,2]
[355092461,1740889832940,-500.0,0.00023303,2]
[355092463,1740889832951,-500.0,0.00023303,2]
[355092465,1740889832961,-592.63,0.00023303,2]
[355092467,1740889832971,-500.0,0.00023303,2]
[355092469,1740889832981,-500.0,0.00023303,2]
[355092471,1740889832990,-500.0,0.00023303,2]
[355092473,1740889833000,-1327.02,0.00023303,2]
[355092475,1740889833010,-2439.78,0.00023303,2]
[355092477,1740889833020,-500.0,0.00023303,2]
[355092479,1740889833030,-500.0,0.00023303,2]
[355092481,1740889833040,-500.0,0.00023303,2]
[355092483,1740889833050,-1031.15,0.00023303,2]
[355092485,1740889833060,-681.02,0.00023303,2]
[355092487,1740889833070,-500.0,0.00023303,2]
[355092489,1740889833080,-500.0,0.00023303,2]
[355092491,1740889833090,-500.0,0.00023303,2]
[355092493,1740889833100,-500.0,0.00023303,2]
[355092495,1740889833110,-605.98482525,0.00023303,2]
[355092497,1740889833121,-500.0,0.00023303,2]
[355092499,1740889833131,-308.93054464,0.00023304,2]
[355092501,1740889833141,-500.0,0.00023304,2]
[355092503,1740889833153,-500.0,0.00023304,2]
[355092505,1740889833164,-500.0,0.00023304,2]
[355092507,1740889833174,-542.79,0.00023304,2]
[355092509,1740889833184,-500.0,0.00023304,2]
[355092511,1740889833194,-500.0,0.00023304,2]
[355092513,1740889833204,-543.53,0.00023304,2]
[355092515,1740889833214,-500.0,0.00023304,2]
[355092517,1740889833224,-500.0,0.00023304,2]
[355092519,1740889833235,-500.0,0.00023304,2]
[355092521,1740889833246,-500.0,0.00023304,2]
[355092523,1740889833256,-500.0,0.00023304,2]
[355092525,1740889833266,-523.18,0.00023304,2]
[355092527,1740889833276,-500.0,0.00023304,2]
[355092529,1740889833286,-500.0,0.00023304,2]
[355092531,1740889833296,-500.0,0.00023304,2]
[355092533,1740889833307,-500.0,0.00023304,2]
[355092535,1740889833320,-500.0,0.00023304,2]
[355092537,1740889833329,-500.0,0.00023304,2]
[355092539,1740889833339,-500.0,0.00023304,2]
[355092541,1740889833350,-500.0,0.00023304,2]
[355092543,1740889833362,-500.0,0.00023304,2]
[355092545,1740889833372,-500.0,0.00023304,2]
[355092548,1740889833384,-500.0,0.00023304,2]
[355092549,1740889833394,-500.0,0.00023304,2]
[355092551,1740889833405,-500.0,0.00023304,2]
[355092553,1740889833415,-500.0,0.00023304,2]
[355092555,1740889833425,-500.0,0.00023304,2]
[355092557,1740889833435,-548.69,0.00023304,2]
[355092559,1740889833444,-500.0,0.00023304,2]
[355092561,1740889833454,-501.67,0.00023304,2]
[355092563,1740889833464,-500.0,0.00023304,2]
[355092565,1740889833475,-500.0,0.00023304,2]
[355092567,1740889833484,-500.0,0.00023304,2]
[355092569,1740889833494,-500.0,0.00023304,2]
[355092571,1740889833503,-500.0,0.00023304,2]
[355092573,1740889833513,-500.0,0.00023304,2]
[355092575,1740889833524,-500.0,0.00023304,2]
[355092577,1740889833535,-500.0,0.00023304,2]
[355092579,1740889833549,-500.0,0.00023304,2]
[355092581,1740889833570,-500.0,0.00023304,2]
[355092583,1740889833580,-375.09294461,0.00023304,2]
[355092585,1740889833591,-500.0,0.00023304,2]
[355092587,1740889833601,-500.0,0.00023304,2]
[355092589,1740889833611,-500.0,0.00023304,2]
[355092591,1740889833621,-500.0,0.00023304,2]
[355092593,1740889833631,-500.0,0.00023304,2]
[355092595,1740889833641,-500.0,0.00023304,2]
[355092597,1740889833650,-500.0,0.00023304,2]
[355092599,1740889833660,-500.0,0.00023304,2]
[355092601,1740889833669,-500.0,0.00023304,2]
[355092603,1740889833679,-500.0,0.00023304,2]
[355092605,1740889833690,-500.0,0.00023304,2]
[355092607,1740889833700,-300.0,0.00023304,2]
[355092609,1740889833711,-500.0,0.00023304,2]
[355092611,1740889833722,-500.0,0.00023304,2]
[355092614,1740889833744,-500.0,0.00023304,2]
[355092616,1740889833756,-500.0,0.00023304,2]
[355092618,1740889833767,-644.86989721,0.00023304,2]
[355092620,1740889833777,-500.0,0.00023304,2]
[355092622,1740889833787,-500.0,0.00023304,2]
[355092624,1740889833797,-500.0,0.00023304,2]
[355092626,1740889833807,-500.0,0.00023304,2]
[355092628,1740889833818,-614.99,0.00023304,2]
[355092630,1740889833827,-598.14,0.00023304,2]
[355092632,1740889833838,-500.0,0.00023304,2]
[355092634,1740889833848,-500.0,0.00023304,2]
[355092636,1740889833858,-500.0,0.00023304,2]
[355092638,1740889833868,-500.0,0.00023304,2]
[355092640,1740889833878,-500.0,0.00023304,2]
[355092642,1740889833888,-500.0,0.00023304,2]
[355092644,1740889833898,-500.0,0.00023304,2]
[355092645,1740889833908,-500.0,0.00023304,2]
[355092647,1740889833917,-500.0,0.00023304,2]
[355092649,1740889833928,-1196.47,0.00023304,2]
[355092650,1740889833938,-500.0,0.00023304,2]
[355092651,1740889833948,-500.0,0.00023304,2]
[355092652,1740889833959,-675.12,0.00023304,2]
[355092653,1740889833969,-531.68,0.00023304,2]
[355092654,1740889833980,-500.0,0.00023304,2]
[355092655,1740889833990,-500.0,0.00023304,2]
[355092656,1740889834000,-500.0,0.00023304,2]
[355092657,1740889834010,-1000.0,0.00023304,5]
[355092658,1740889834020,-500.0,0.00023304,2]
[355092659,1740889834032,-500.0,0.00023304,2]
[355092660,1740889834042,-500.0,0.00023304,2]
[355092661,1740889834053,-500.0,0.00023304,2]
[355092662,1740889834063,-500.0,0.00023304,2]
[355092663,1740889834073,-559.99,0.00023304,2]
[355092664,1740889834083,-500.0,0.00023304,2]
[355092665,1740889834093,-590.63,0.00023304,2]
[355092666,1740889834104,-500.0,0.00023304,2]
[355092667,1740889834114,-500.0,0.00023304,2]
[355092668,1740889834124,-500.0,0.00023304,2]
[355092669,1740889834134,-500.0,0.00023304,2]
[355092670,1740889834144,-500.0,0.00023304,2]
[355092671,1740889834156,-615.9,0.00023304,2]
[355092672,1740889834167,-500.0,0.00023304,2]
[355092673,1740889834178,-1053.26,0.00023304,2]
[355092674,1740889834188,-505.18,0.00023304,2]
[355092675,1740889834199,-500.0,0.00023304,2]
[355092676,1740889834211,-500.0,0.00023304,2]
[355092677,1740889834221,-500.0,0.00023304,2]
[355092678,1740889834232,-333.92055318,0.00023304,2]
[355092679,1740889834259,-14.94798804,0.00023304,2]
[355092680,1740889834269,-500.0,0.00023304,2]
[355092681,1740889834280,-500.0,0.00023304,2]
[355092682,1740889834290,-158.51879263,0.00023304,2]
[355092700,1740889838185,-11747.66,0.00023303,2]
[355092701,1740889838195,-341.48120737,0.00023304,2]
[355092702,1740889838205,-500.0,0.00023304,2]
[355092703,1740889838215,-500.0,0.00023304,2]
[355092704,1740889838224,-500.0,0.00023304,2]
[355092705,1740889838234,-500.0,0.00023304,2]
[355092706,1740889838244,-970.62,0.00023305,2]
[355092707,1740889838254,-500.0,0.00023305,2]
[355092708,1740889838263,-500.0,0.00023305,2]
[355092709,1740889838273,-949.41,0.00023305,2]
[355092710,1740889838283,-500.0,0.00023305,2]
[355092711,1740889838292,-500.0,0.00023305,2]
[355092712,1740889838302,-500.0,0.00023307,2]
[355092713,1740889838314,-602.99,0.00023307,2]
[355092714,1740889838323,-500.0,0.00023307,2]
[355092715,1740889838333,-500.03,0.00023307,2]
[355092716,1740889838343,-500.0,0.00023307,2]
[355092717,1740889838354,-500.0,0.00023307,2]
[355092718,1740889838363,-500.0,0.00023307,2]
[355092719,1740889838373,-500.0,0.00023307,2]
[355092720,1740889838382,-408.01171172,0.00023307,2]
[355092722,1740889838394,-500.0,0.00023307,2]
[355092724,1740889838404,-500.0,0.00023307,2]
[355092725,1740889838415,-500.0,0.00023307,2]
[355092727,1740889838424,-500.0,0.00023307,2]
[355092729,1740889838434,-500.0,0.00023307,2]
[355092730,1740889838443,-585.74,0.00023307,2]
[355092731,1740889838453,-410.39642128,0.00023307,2]
[355092732,1740889838463,-500.0,0.00023307,2]
[355092734,1740889838472,-500.0,0.00023307,2]
[355092736,1740889838481,-564.12,0.00023307,2]
[355092738,1740889838490,-487.0,0.00023307,2]
[355092739,1740889838500,-500.0,0.00023307,2]
[355092740,1740889838509,-500.0,0.00023307,2]
[355092741,1740889838518,-500.0,0.00023307,2]
[355092742,1740889838528,-500.49,0.00023307,2]
[355092743,1740889838538,-500.0,0.00023307,2]
[355092744,1740889838547,-509.1,0.00023307,2]
[355092745,1740889838556,-630.0,0.00023307,2]
[355092746,1740889838566,-500.0,0.00023307,2]
[355092747,1740889838575,-500.0,0.00023307,2]
[355092748,1740889838585,-535.36643481,0.00023307,2]
[355092749,1740889838595,-500.0,0.00023307,2]
[355092750,1740889838605,-250.0,0.00023307,2]
[355092751,1740889838614,-500.0,0.00023307,2]
[355092752,1740889838623,-500.0,0.00023307,2]
[355092753,1740889838633,-500.0,0.00023307,2]
[355092754,1740889838642,-500.0,0.00023307,2]
[355092755,1740889838652,-500.0,0.00023307,2]
[355092756,1740889838661,-500.0,0.00023307,2]
[355092757,1740889838671,-500.0,0.00023307,2]
[355092758,1740889838680,-500.0,0.00023307,2]
[355092759,1740889838690,-500.0,0.00023307,2]
[355092760,1740889838700,-500.0,0.00023307,2]
[355092761,1740889838709,-500.0,0.00023307,2]
[355092762,1740889838719,-500.0,0.00023307,2]
[355092763,1740889838729,-500.0,0.00023307,2]